[Event "Late-Titled-Tuesday-Blitz-June-18-2024"]
[Site "Chess.com"]
[Date "2024.06.18"]
[Round "6"]
[White "champ2005"]
[Black "js20000"]
[Result "1/2-1/2"]
[WhiteElo "3067"]
[BlackElo "2811"]
[TimeControl "180+1"]
[EndTime "15:11:29 PDT"]
[Termination "Game drawn - insufficient material"]

1. c4 {[%clk 0:03:00.9]} 1... e6 {[%clk 0:02:59]} 2. Nf3 {[%clk 0:03:00.1]} 2...
d5 {[%clk 0:02:59.4]} 3. d4 {[%clk 0:02:59.4]} 3... a6 {[%clk 0:02:55.8]} 4. g3
{[%clk 0:02:54.7]} 4... dxc4 {[%clk 0:02:50.1]} 5. Bg2 {[%clk 0:02:53.6]} 5...
c5 {[%clk 0:02:50.2]} 6. O-O {[%clk 0:02:50.5]} 6... Nc6 {[%clk 0:02:50]} 7.
dxc5 {[%clk 0:02:47.2]} 7... Qxd1 {[%clk 0:02:48.1]} 8. Rxd1 {[%clk 0:02:48.1]}
8... Bxc5 {[%clk 0:02:47.8]} 9. Nbd2 {[%clk 0:02:48.7]} 9... c3 {[%clk
0:02:31.6]} 10. bxc3 {[%clk 0:02:47.9]} 10... Nf6 {[%clk 0:02:31.5]} 11. Nb3
{[%clk 0:02:44.8]} 11... Be7 {[%clk 0:02:29.9]} 12. c4 {[%clk 0:02:40.2]} 12...
O-O {[%clk 0:02:29.3]} 13. Bb2 {[%clk 0:02:40.4]} 13... Bd7 {[%clk 0:02:25.3]}
14. Bxf6 {[%clk 0:02:17.3]} 14... Bxf6 {[%clk 0:02:26.2]} 15. Rxd7 {[%clk
0:02:17.7]} 15... Bxa1 {[%clk 0:02:25.2]} 16. Nxa1 {[%clk 0:02:18.6]} 16... Rfd8
{[%clk 0:02:25]} 17. Rd2 {[%clk 0:02:11]} 17... Na5 {[%clk 0:02:05.9]} 18. c5
{[%clk 0:01:39.9]} 18... Rac8 {[%clk 0:02:01.2]} 19. Nb3 {[%clk 0:01:29.8]}
19... Nxb3 {[%clk 0:01:54.3]} 20. axb3 {[%clk 0:01:30.7]} 20... Rxd2 {[%clk
0:01:43.7]} 21. Nxd2 {[%clk 0:01:31.6]} 21... Rxc5 {[%clk 0:01:42.8]} 22. Bxb7
{[%clk 0:01:30]} 22... Rc2 {[%clk 0:01:42.1]} 23. Nc4 {[%clk 0:00:43.7]} 23...
Rc3 {[%clk 0:01:41.8]} 24. Nd2 {[%clk 0:00:34.6]} 24... Rc2 {[%clk 0:01:41.4]}
25. Nf3 {[%clk 0:00:24.5]} 25... Rc3 {[%clk 0:01:38.9]} 26. Nd4 {[%clk
0:00:20.6]} 26... a5 {[%clk 0:01:38.6]} 27. f4 {[%clk 0:00:16.9]} 27... a4
{[%clk 0:01:33.2]} 28. bxa4 {[%clk 0:00:12.6]} 28... Rc4 {[%clk 0:01:33.7]} 29.
Nf3 {[%clk 0:00:10.3]} 29... Rxa4 {[%clk 0:01:33.6]} 30. Kf2 {[%clk 0:00:10.9]}
30... Kf8 {[%clk 0:01:29.2]} 31. Bc6 {[%clk 0:00:11]} 31... Ra5 {[%clk
0:01:28.5]} 32. Be4 {[%clk 0:00:11]} 32... h6 {[%clk 0:01:27.3]} 33. Bd3 {[%clk
0:00:11.9]} 33... Ke7 {[%clk 0:01:27]} 34. Ne5 {[%clk 0:00:12]} 34... Kf8 {[%clk
0:01:23.2]} 35. h4 {[%clk 0:00:11.5]} 35... Ra3 {[%clk 0:01:20.8]} 36. Be4
{[%clk 0:00:10.4]} 36... h5 {[%clk 0:01:18.9]} 37. Bf3 {[%clk 0:00:10.3]} 37...
g6 {[%clk 0:01:18.5]} 38. Be4 {[%clk 0:00:10.6]} 38... Kg7 {[%clk 0:01:18.9]}
39. Bc6 {[%clk 0:00:10.3]} 39... Kf8 {[%clk 0:01:14.9]} 40. Nf3 {[%clk
0:00:10.6]} 40... Ke7 {[%clk 0:01:12.3]} 41. Ng5 {[%clk 0:00:10]} 41... Rc3
{[%clk 0:01:09.8]} 42. Be4 {[%clk 0:00:10.4]} 42... Ra3 {[%clk 0:01:09.7]} 43.
Bd3 {[%clk 0:00:10.8]} 43... Ra5 {[%clk 0:01:08.8]} 44. Nf3 {[%clk 0:00:11.1]}
44... Ra3 {[%clk 0:01:05.5]} 45. Ne5 {[%clk 0:00:11.2]} 45... Ra1 {[%clk
0:01:04.5]} 46. Nc4 {[%clk 0:00:11]} 46... Ra7 {[%clk 0:01:03.1]} 47. Ne5 {[%clk
0:00:10.4]} 47... Ra1 {[%clk 0:01:02.3]} 48. Nf3 {[%clk 0:00:08.4]} 48... Ra3
{[%clk 0:01:01.7]} 49. Ke3 {[%clk 0:00:07.5]} 49... Kf6 {[%clk 0:01:01.1]} 50.
Ne5 {[%clk 0:00:06.7]} 50... Ke7 {[%clk 0:01:00.2]} 51. Ke4 {[%clk 0:00:06.7]}
51... Ra4+ {[%clk 0:00:59.2]} 52. Kf3 {[%clk 0:00:07.2]} 52... Ra3 {[%clk
0:00:58.9]} 53. Nc4 {[%clk 0:00:07.5]} 53... Ra1 {[%clk 0:00:58.5]} 54. e4
{[%clk 0:00:07.2]} 54... Ra2 {[%clk 0:00:56.1]} 55. f5 {[%clk 0:00:05.6]} 55...
exf5 {[%clk 0:00:56.6]} 56. exf5 {[%clk 0:00:06.5]} 56... Kf6 {[%clk 0:00:56.7]}
57. fxg6 {[%clk 0:00:04.2]} 57... fxg6 {[%clk 0:00:57.6]} 58. Nd6 {[%clk
0:00:04]} 58... Ra3 {[%clk 0:00:50.2]} 59. Ke3 {[%clk 0:00:04]} 59... Ra1 {[%clk
0:00:46]} 60. Ne4+ {[%clk 0:00:04.9]} 60... Kf5 {[%clk 0:00:43.1]} 61. Kf3
{[%clk 0:00:03.5]} 61... Ra3 {[%clk 0:00:40.5]} 62. Nf2+ {[%clk 0:00:04]} 62...
Kf6 {[%clk 0:00:39.6]} 63. Kf4 {[%clk 0:00:04.2]} 63... Ra5 {[%clk 0:00:33.8]}
64. Ne4+ {[%clk 0:00:04.4]} 64... Kg7 {[%clk 0:00:31.8]} 65. Ng5 {[%clk
0:00:05.3]} 65... Kf6 {[%clk 0:00:29.6]} 66. Be4 {[%clk 0:00:06]} 66... Ra1
{[%clk 0:00:28]} 67. Nf3 {[%clk 0:00:06.9]} 67... Ra5 {[%clk 0:00:24.3]} 68. Nd4
{[%clk 0:00:06.8]} 68... g5+ {[%clk 0:00:24.4]} 69. hxg5+ {[%clk 0:00:06]} 69...
Rxg5 {[%clk 0:00:25.3]} 70. Bf5 {[%clk 0:00:06.2]} 70... Rg7 {[%clk 0:00:21.7]}
71. Nf3 {[%clk 0:00:06.1]} 71... Ra7 {[%clk 0:00:20.3]} 72. Nh4 {[%clk
0:00:06.5]} 72... Ra4+ {[%clk 0:00:19.9]} 73. Be4 {[%clk 0:00:07.4]} 73... Rb4
{[%clk 0:00:19]} 74. Ng2 {[%clk 0:00:07]} 74... Ra4 {[%clk 0:00:19.1]} 75. Ne3
{[%clk 0:00:07.7]} 75... Ra1 {[%clk 0:00:13.9]} 76. Nd5+ {[%clk 0:00:06.6]}
76... Ke6 {[%clk 0:00:11.7]} 77. Nc7+ {[%clk 0:00:06.6]} 77... Kf6 {[%clk
0:00:11.9]} 78. Ne8+ {[%clk 0:00:06.8]} 78... Kf7 {[%clk 0:00:11.7]} 79. Nd6+
{[%clk 0:00:07.1]} 79... Ke6 {[%clk 0:00:12.3]} 80. Nb5 {[%clk 0:00:04.1]} 80...
Kf6 {[%clk 0:00:11.3]} 81. Nc3 {[%clk 0:00:04]} 81... Rf1+ {[%clk 0:00:10.7]}
82. Bf3 {[%clk 0:00:04.3]} 82... Kg6 {[%clk 0:00:10.1]} 83. Nd5 {[%clk
0:00:04.9]} 83... Ra1 {[%clk 0:00:09.5]} 84. Ne7+ {[%clk 0:00:05.2]} 84... Kf6
{[%clk 0:00:09.3]} 85. Nd5+ {[%clk 0:00:05.8]} 85... Kg6 {[%clk 0:00:08.9]} 86.
Be4+ {[%clk 0:00:06.7]} 86... Kh6 {[%clk 0:00:08.8]} 87. Ne3 {[%clk 0:00:07.3]}
87... Ra7 {[%clk 0:00:07.8]} 88. Nf5+ {[%clk 0:00:07.8]} 88... Kg6 {[%clk
0:00:08.1]} 89. Nd6+ {[%clk 0:00:07.3]} 89... Kh6 {[%clk 0:00:07.6]} 90. Kf5
{[%clk 0:00:04.8]} 90... Ra5+ {[%clk 0:00:06.9]} 91. Kf6 {[%clk 0:00:04.6]}
91... Ra6 {[%clk 0:00:07.4]} 92. Ke5 {[%clk 0:00:05.2]} 92... Kg5 {[%clk
0:00:07.2]} 93. Bd5 {[%clk 0:00:04]} 93... Rxd6 {[%clk 0:00:06.1]} 94. Kxd6
{[%clk 0:00:04.1]} 94... Kg4 {[%clk 0:00:06.4]} 95. Bf7 {[%clk 0:00:03.7]} 95...
Kxg3 {[%clk 0:00:07.3]} 96. Bxh5 {[%clk 0:00:03.6]} 1/2-1/2

[Event "Late-Titled-Tuesday-Blitz-June-18-2024"]
[Site "Chess.com"]
[Date "2024.06.18"]
[Round "6"]
[White "Rud_Makarian"]
[Black "Zurability"]
[Result "0-1"]
[WhiteElo "3044"]
[BlackElo "2812"]
[TimeControl "180+1"]
[EndTime "15:11:58 PDT"]
[Termination "Zurability won on time"]

1. c4 {[%clk 0:02:59.6]} 1... e6 {[%clk 0:02:59.6]} 2. Nc3 {[%clk 0:02:59.6]}
2... d5 {[%clk 0:03:00.3]} 3. d4 {[%clk 0:03:00.1]} 3... Nf6 {[%clk 0:02:59.9]}
4. Bg5 {[%clk 0:02:59.3]} 4... Nbd7 {[%clk 0:02:59.3]} 5. Nf3 {[%clk 0:02:59.4]}
5... Be7 {[%clk 0:02:55.5]} 6. e3 {[%clk 0:02:59.5]} 6... h6 {[%clk 0:02:53.5]}
7. Bh4 {[%clk 0:02:59.4]} 7... Ne4 {[%clk 0:02:41.5]} 8. Bxe7 {[%clk 0:02:51.2]}
8... Qxe7 {[%clk 0:02:42.4]} 9. cxd5 {[%clk 0:02:51.2]} 9... Nxc3 {[%clk
0:02:42.3]} 10. bxc3 {[%clk 0:02:52.1]} 10... exd5 {[%clk 0:02:42.9]} 11. Bd3
{[%clk 0:02:52.8]} 11... O-O {[%clk 0:02:39.3]} 12. O-O {[%clk 0:02:53.6]} 12...
c5 {[%clk 0:02:39.8]} 13. Re1 {[%clk 0:02:54.3]} 13... Nf6 {[%clk 0:02:33.1]}
14. Ne5 {[%clk 0:02:50.6]} 14... Be6 {[%clk 0:02:30.9]} 15. a4 {[%clk
0:02:45.7]} 15... Rfc8 {[%clk 0:02:24.1]} 16. Qd2 {[%clk 0:02:42.9]} 16... Ne8
{[%clk 0:02:07.4]} 17. a5 {[%clk 0:02:41.8]} 17... Nd6 {[%clk 0:02:07]} 18. h3
{[%clk 0:02:36.6]} 18... Rc7 {[%clk 0:02:06.3]} 19. Rac1 {[%clk 0:02:06.6]}
19... Rac8 {[%clk 0:02:03.3]} 20. Nf3 {[%clk 0:02:03.3]} 20... Bf5 {[%clk
0:01:34.3]} 21. Bxf5 {[%clk 0:02:02.9]} 21... Nxf5 {[%clk 0:01:34.1]} 22. Qa2
{[%clk 0:02:03.3]} 22... Qe4 {[%clk 0:01:13.2]} 23. Rb1 {[%clk 0:01:53]} 23...
Nd6 {[%clk 0:01:03.5]} 24. Red1 {[%clk 0:01:45]} 24... Qf5 {[%clk 0:00:59.9]}
25. Nd2 {[%clk 0:01:11.6]} 25... cxd4 {[%clk 0:00:56.1]} 26. cxd4 {[%clk
0:01:12.5]} 26... Rc2 {[%clk 0:00:52.4]} 27. Rb2 {[%clk 0:01:12.9]} 27... Qd3
{[%clk 0:00:27.2]} 28. Qb1 {[%clk 0:01:01.7]} 28... R8c6 {[%clk 0:00:13.7]} 29.
Rxc2 {[%clk 0:00:22.8]} 29... Rxc2 {[%clk 0:00:13]} 30. Nf3 {[%clk 0:00:06.2]}
30... Qe2 {[%clk 0:00:12.8]} 31. Rf1 {[%clk 0:00:06.4]} 31... Ne4 {[%clk
0:00:12.5]} 32. Qe1 {[%clk 0:00:06.8]} 32... Qa6 {[%clk 0:00:08.9]} 33. Qd1
{[%clk 0:00:04.7]} 33... Ra2 {[%clk 0:00:06.2]} 34. Ne5 {[%clk 0:00:04.6]} 34...
Qxa5 {[%clk 0:00:05.7]} 35. Qf3 {[%clk 0:00:03.7]} 35... Qc7 {[%clk 0:00:05.9]}
36. Qf5 {[%clk 0:00:03.8]} 36... Ra6 {[%clk 0:00:04.4]} 37. g4 {[%clk
0:00:03.2]} 37... Rf6 {[%clk 0:00:04.7]} 38. Qh5 {[%clk 0:00:03]} 38... Nd2
{[%clk 0:00:03.9]} 39. Rd1 {[%clk 0:00:02.8]} 39... Ne4 {[%clk 0:00:04.5]} 40.
Rf1 {[%clk 0:00:02.6]} 40... Qc2 {[%clk 0:00:03.7]} 41. Qh4 {[%clk 0:00:02]}
41... Ng5 {[%clk 0:00:03.6]} 42. Qg3 {[%clk 0:00:02.2]} 42... Ne4 {[%clk
0:00:04.2]} 43. Qg2 {[%clk 0:00:02.6]} 43... a5 {[%clk 0:00:04.8]} 44. h4 {[%clk
0:00:02.3]} 44... a4 {[%clk 0:00:04.7]} 45. g5 {[%clk 0:00:02.8]} 45... hxg5
{[%clk 0:00:05.3]} 46. hxg5 {[%clk 0:00:03.7]} 46... Rf5 {[%clk 0:00:05.9]} 47.
f4 {[%clk 0:00:03.6]} 47... Qxg2+ {[%clk 0:00:05.5]} 48. Kxg2 {[%clk 0:00:04.5]}
48... f6 {[%clk 0:00:06.4]} 49. gxf6 {[%clk 0:00:03.5]} 49... gxf6 {[%clk
0:00:07]} 50. Nf3 {[%clk 0:00:03.5]} 50... Rh5 {[%clk 0:00:06.7]} 51. Rb1 {[%clk
0:00:04.1]} 51... Rh7 {[%clk 0:00:06.7]} 52. Rb4 {[%clk 0:00:04.6]} 52... b5
{[%clk 0:00:06.2]} 53. Rxb5 {[%clk 0:00:04.7]} 53... Ra7 {[%clk 0:00:06.8]} 54.
Rb1 {[%clk 0:00:03.4]} 54... a3 {[%clk 0:00:07]} 55. Ra1 {[%clk 0:00:03.8]}
55... a2 {[%clk 0:00:07.5]} 56. Ne1 {[%clk 0:00:04.4]} 56... Nc3 {[%clk
0:00:07.4]} 57. Nd3 {[%clk 0:00:03.7]} 57... Rb7 {[%clk 0:00:07.8]} 58. Nc1
{[%clk 0:00:04.2]} 58... Rb1 {[%clk 0:00:07.3]} 59. Nxa2 {[%clk 0:00:04.8]}
59... Rxa1 {[%clk 0:00:04.9]} 60. Nxc3 {[%clk 0:00:05.2]} 60... Ra5 {[%clk
0:00:05.6]} 61. Kf3 {[%clk 0:00:05.2]} 61... Kf7 {[%clk 0:00:06.2]} 62. Ne2
{[%clk 0:00:05.7]} 62... Ke6 {[%clk 0:00:06.4]} 63. Ng3 {[%clk 0:00:06.6]} 63...
Ra3 {[%clk 0:00:06.5]} 64. f5+ {[%clk 0:00:06.7]} 64... Kf7 {[%clk 0:00:05.4]}
65. Ne2 {[%clk 0:00:06.6]} 65... Ra5 {[%clk 0:00:04.7]} 66. Nf4 {[%clk
0:00:06.9]} 66... Kg7 {[%clk 0:00:05.2]} 67. Ne6+ {[%clk 0:00:06.9]} 67... Kh6
{[%clk 0:00:05.6]} 68. Kf4 {[%clk 0:00:07.7]} 68... Kh5 {[%clk 0:00:05.8]} 69.
Nc7 {[%clk 0:00:06.2]} 69... Kh6 {[%clk 0:00:04.1]} 70. Ne8 {[%clk 0:00:05.6]}
70... Ra6 {[%clk 0:00:04.5]} 71. Nc7 {[%clk 0:00:05.6]} 71... Rd6 {[%clk
0:00:04.3]} 72. Ne6 {[%clk 0:00:05.7]} 72... Kh5 {[%clk 0:00:04.5]} 73. Nc5
{[%clk 0:00:05]} 73... Kh4 {[%clk 0:00:04]} 74. Ne6 {[%clk 0:00:05]} 74... Kh5
{[%clk 0:00:03.8]} 75. Nc7 {[%clk 0:00:04.8]} 75... Kh6 {[%clk 0:00:03.7]} 76.
Ne6 {[%clk 0:00:03.3]} 76... Kh7 {[%clk 0:00:03.4]} 77. e4 {[%clk 0:00:03.1]}
77... dxe4 {[%clk 0:00:03.6]} 78. Kxe4 {[%clk 0:00:04]} 78... Kg8 {[%clk
0:00:04.1]} 79. Nc5 {[%clk 0:00:03.6]} 79... Kf7 {[%clk 0:00:04.4]} 80. Nd3
{[%clk 0:00:03.7]} 80... Ra6 {[%clk 0:00:04.3]} 81. Nc5 {[%clk 0:00:04]} 81...
Ra1 {[%clk 0:00:05]} 82. Nd3 {[%clk 0:00:02.3]} 82... Rd1 {[%clk 0:00:04.9]} 83.
Nc5 {[%clk 0:00:01.8]} 83... Re1+ {[%clk 0:00:04.8]} 84. Kf4 {[%clk 0:00:02.3]}
84... Ke7 {[%clk 0:00:04.7]} 85. Ne4 {[%clk 0:00:02.3]} 85... Rf1+ {[%clk
0:00:04.7]} 86. Kg4 {[%clk 0:00:02.2]} 86... Rd1 {[%clk 0:00:03.5]} 87. Kf4
{[%clk 0:00:02.2]} 87... Rxd4 {[%clk 0:00:03.6]} 88. Ke3 {[%clk 0:00:03.1]}
88... Rd5 {[%clk 0:00:03.5]} 89. Kf4 {[%clk 0:00:03.5]} 89... Ra5 {[%clk
0:00:04.2]} 90. Ng3 {[%clk 0:00:03.8]} 90... Ra4+ {[%clk 0:00:04.4]} 91. Kf3
{[%clk 0:00:03.8]} 91... Kd6 {[%clk 0:00:04.3]} 92. Ke3 {[%clk 0:00:01.6]} 92...
Ke5 {[%clk 0:00:04.5]} 93. Kf3 {[%clk 0:00:02.5]} 93... Rf4+ {[%clk 0:00:04.3]}
94. Ke3 {[%clk 0:00:03.1]} 94... Ra4 {[%clk 0:00:04.1]} 95. Kf3 {[%clk
0:00:03.7]} 95... Ra3+ {[%clk 0:00:03.8]} 96. Kg4 {[%clk 0:00:03.1]} 96... Ra2
{[%clk 0:00:04.2]} 97. Kf3 {[%clk 0:00:03.4]} 97... Ra8 {[%clk 0:00:04.4]} 98.
Kg4 {[%clk 0:00:03.5]} 98... Rg8+ {[%clk 0:00:04.9]} 99. Kf3 {[%clk 0:00:04.1]}
99... Rg5 {[%clk 0:00:05.5]} 100. Kf2 {[%clk 0:00:03.1]} 100... Kf4 {[%clk
0:00:05.1]} 101. Ne2+ {[%clk 0:00:03.5]} 101... Kxf5 {[%clk 0:00:05.6]} 102. Kf3
{[%clk 0:00:04.4]} 102... Ke5 {[%clk 0:00:05.6]} 103. Nf4 {[%clk 0:00:04.1]}
103... Rf5 {[%clk 0:00:06]} 0-1

[Event "Late-Titled-Tuesday-Blitz-June-18-2024"]
[Site "Chess.com"]
[Date "2024.06.18"]
[Round "7"]
[White "azikom"]
[Black "Rainbow2014"]
[Result "1-0"]
[WhiteElo "2695"]
[BlackElo "2507"]
[TimeControl "180+1"]
[EndTime "15:13:10 PDT"]
[Termination "azikom won by resignation"]

1. c4 {[%clk 0:02:58.8]} 1... e6 {[%clk 0:02:55.5]} 2. Nc3 {[%clk 0:02:58.3]}
2... d5 {[%clk 0:02:55.6]} 3. e3 {[%clk 0:02:58.8]} 3... Nf6 {[%clk 0:02:55.4]}
4. Nf3 {[%clk 0:02:59.2]} 4... Be7 {[%clk 0:02:55.6]} 5. b3 {[%clk 0:02:59.6]}
5... O-O {[%clk 0:02:55.7]} 6. Bb2 {[%clk 0:03:00.2]} 6... c5 {[%clk 0:02:55.9]}
7. cxd5 {[%clk 0:03:00]} 7... Nxd5 {[%clk 0:02:56]} 8. d4 {[%clk 0:03:00.9]}
8... Nxc3 {[%clk 0:02:55]} 9. Bxc3 {[%clk 0:03:00.8]} 9... Nc6 {[%clk
0:02:55.2]} 10. dxc5 {[%clk 0:02:57.4]} 10... Qd4 {[%clk 0:02:51.6]} 11. Qxd4
{[%clk 0:02:53.8]} 1-0

[Event "Late-Titled-Tuesday-Blitz-June-18-2024"]
[Site "Chess.com"]
[Date "2024.06.18"]
[Round "7"]
[White "KorolDimitriy75"]
[Black "randomo"]
[Result "1/2-1/2"]
[WhiteElo "2455"]
[BlackElo "2317"]
[TimeControl "180+1"]
[EndTime "15:14:14 PDT"]
[Termination "Game drawn by repetition"]

1. d4 {[%clk 0:03:00.9]} 1... Nf6 {[%clk 0:02:59.5]} 2. c4 {[%clk 0:03:01.1]}
2... e6 {[%clk 0:02:59.5]} 3. Nc3 {[%clk 0:03:01.4]} 3... Bb4 {[%clk 0:02:59.3]}
4. Qc2 {[%clk 0:03:01.7]} 4... Nc6 {[%clk 0:02:59.3]} 5. Nf3 {[%clk 0:03:01.4]}
5... d6 {[%clk 0:02:59.4]} 6. e3 {[%clk 0:02:53.4]} 6... Qe7 {[%clk 0:02:56.4]}
7. Be2 {[%clk 0:02:52.2]} 7... O-O {[%clk 0:02:55.1]} 8. O-O {[%clk 0:02:51.3]}
8... Bxc3 {[%clk 0:02:51.6]} 9. Qxc3 {[%clk 0:02:50.1]} 9... a5 {[%clk
0:02:51.5]} 10. b3 {[%clk 0:02:47.6]} 10... e5 {[%clk 0:02:50.7]} 11. dxe5
{[%clk 0:02:43.9]} 11... dxe5 {[%clk 0:02:51.6]} 12. Bb2 {[%clk 0:02:43.9]}
12... Re8 {[%clk 0:02:52.1]} 13. h3 {[%clk 0:02:42.3]} 13... h6 {[%clk
0:02:45.1]} 14. Rfd1 {[%clk 0:02:37.3]} 14... Bf5 {[%clk 0:02:38.5]} 15. a3
{[%clk 0:02:27.3]} 15... Ne4 {[%clk 0:02:34.5]} 16. Qe1 {[%clk 0:02:25.9]} 16...
Nc5 {[%clk 0:02:28.5]} 17. Qc3 {[%clk 0:02:23.3]} 17... Ne4 {[%clk 0:02:25.2]}
18. Qe1 {[%clk 0:02:23.2]} 18... Nc5 {[%clk 0:02:24.2]} 19. Qc3 {[%clk
0:02:22.8]} 19... Ne4 {[%clk 0:02:24.1]} 1/2-1/2

[Event "Late-Titled-Tuesday-Blitz-June-18-2024"]
[Site "Chess.com"]
[Date "2024.06.18"]
[Round "7"]
[White "dennisodessa"]
[Black "Yaacovn"]
[Result "1-0"]
[WhiteElo "2628"]
[BlackElo "2774"]
[TimeControl "180+1"]
[EndTime "15:14:28 PDT"]
[Termination "dennisodessa won by resignation"]

1. d4 {[%clk 0:03:00.3]} 1... Nf6 {[%clk 0:02:53.7]} 2. c4 {[%clk 0:03:00.3]}
2... e5 {[%clk 0:02:53.5]} 3. dxe5 {[%clk 0:03:00.3]} 3... Ne4 {[%clk
0:02:53.4]} 4. Nf3 {[%clk 0:02:57.9]} 4... Nc6 {[%clk 0:02:52.4]} 5. Nbd2 {[%clk
0:02:53]} 5... Bb4 {[%clk 0:02:05.4]} 6. a3 {[%clk 0:02:43.1]} 6... Nxd2 {[%clk
0:02:05]} 7. Bxd2 {[%clk 0:02:44]} 7... Bxd2+ {[%clk 0:02:04.9]} 8. Qxd2 {[%clk
0:02:44.9]} 8... O-O {[%clk 0:02:05.3]} 9. e3 {[%clk 0:02:37]} 9... Qe7 {[%clk
0:02:05.2]} 10. Qc3 {[%clk 0:02:35.8]} 10... Re8 {[%clk 0:02:05.1]} 11. Be2
{[%clk 0:02:35.2]} 11... Nxe5 {[%clk 0:02:05]} 12. Nxe5 {[%clk 0:02:35.8]} 12...
Qxe5 {[%clk 0:02:05.9]} 13. Qxe5 {[%clk 0:02:36.4]} 13... Rxe5 {[%clk
0:02:06.5]} 14. O-O {[%clk 0:02:37.3]} 14... d6 {[%clk 0:02:06.6]} 15. Bf3
{[%clk 0:02:37.8]} 15... Bd7 {[%clk 0:02:06.6]} 16. Bxb7 {[%clk 0:02:30.9]}
16... Bc6 {[%clk 0:02:07.5]} 17. Bxc6 {[%clk 0:02:28.6]} 1-0

[Event "Late-Titled-Tuesday-Blitz-June-18-2024"]
[Site "Chess.com"]
[Date "2024.06.18"]
[Round "7"]
[White "mfschulz"]
[Black "Jahonas"]
[Result "0-1"]
[WhiteElo "2195"]
[BlackElo "2397"]
[TimeControl "180+1"]
[EndTime "15:15:10 PDT"]
[Termination "Jahonas won by resignation"]

1. d4 {[%clk 0:02:59.4]} 1... Nf6 {[%clk 0:02:59.1]} 2. Bg5 {[%clk 0:02:58.6]}
2... e6 {[%clk 0:02:58.8]} 3. Nd2 {[%clk 0:02:57.7]} 3... d5 {[%clk 0:02:58.2]}
4. e3 {[%clk 0:02:57.5]} 4... Be7 {[%clk 0:02:58]} 5. Bd3 {[%clk 0:02:57.6]}
5... c6 {[%clk 0:02:58.2]} 6. Ngf3 {[%clk 0:02:57.7]} 6... Nbd7 {[%clk
0:02:58.2]} 7. O-O {[%clk 0:02:56.8]} 7... h6 {[%clk 0:02:58.2]} 8. Bh4 {[%clk
0:02:55.8]} 8... O-O {[%clk 0:02:58.4]} 9. c3 {[%clk 0:02:55.5]} 9... b6 {[%clk
0:02:58.4]} 10. Qe2 {[%clk 0:02:55.2]} 10... Bb7 {[%clk 0:02:58.4]} 11. e4
{[%clk 0:02:54.8]} 11... dxe4 {[%clk 0:02:55.8]} 12. Nxe4 {[%clk 0:02:53.9]}
12... c5 {[%clk 0:02:52.9]} 13. Bxf6 {[%clk 0:02:48.2]} 13... Nxf6 {[%clk
0:02:52.3]} 14. Nxf6+ {[%clk 0:02:47.5]} 14... Bxf6 {[%clk 0:02:52.5]} 15. dxc5
{[%clk 0:02:47.4]} 15... bxc5 {[%clk 0:02:51.4]} 16. Rad1 {[%clk 0:02:47.4]}
16... Qc7 {[%clk 0:02:48.8]} 17. Bb1 {[%clk 0:02:43.7]} 17... Rad8 {[%clk
0:02:45.4]} 18. h3 {[%clk 0:02:43.5]} 18... g6 {[%clk 0:02:42.8]} 19. Nh2 {[%clk
0:02:41.9]} 19... h5 {[%clk 0:02:39.5]} 20. f4 {[%clk 0:02:30.7]} 20... Rxd1
{[%clk 0:02:35]} 21. Qxd1 {[%clk 0:02:27.7]} 21... Rd8 {[%clk 0:02:32.4]} 22.
Qe2 {[%clk 0:02:27.7]} 22... Qd6 {[%clk 0:02:23.5]} 23. Be4 {[%clk 0:02:21.1]}
23... Ba6 {[%clk 0:02:19.9]} 24. c4 {[%clk 0:02:18.5]} 24... Qd4+ {[%clk
0:02:18.8]} 25. Kh1 {[%clk 0:02:17.1]} 25... Bxc4 {[%clk 0:02:18.3]} 26. Qf3
{[%clk 0:02:07.8]} 26... Bxf1 {[%clk 0:02:15.3]} 27. Nxf1 {[%clk 0:02:07.9]}
27... Qd1 {[%clk 0:02:09.8]} 0-1

[Event "Late-Titled-Tuesday-Blitz-June-18-2024"]
[Site "Chess.com"]
[Date "2024.06.18"]
[Round "7"]
[White "Mikayel99"]
[Black "ClauAmura"]
[Result "1-0"]
[WhiteElo "2673"]
[BlackElo "2385"]
[TimeControl "180+1"]
[EndTime "15:15:34 PDT"]
[Termination "Mikayel99 won by resignation"]

1. e4 {[%clk 0:03:00.9]} 1... g6 {[%clk 0:02:58.6]} 2. d4 {[%clk 0:03:00.7]}
2... Bg7 {[%clk 0:02:59.3]} 3. Nf3 {[%clk 0:03:01.3]} 3... c6 {[%clk 0:02:59.2]}
4. h3 {[%clk 0:02:58]} 4... Nf6 {[%clk 0:02:57.3]} 5. Nc3 {[%clk 0:02:57.7]}
5... d5 {[%clk 0:02:57.2]} 6. e5 {[%clk 0:02:58.2]} 6... Ne4 {[%clk 0:02:57]} 7.
Bd3 {[%clk 0:02:56.2]} 7... Nxc3 {[%clk 0:02:51.3]} 8. bxc3 {[%clk 0:02:57.1]}
8... b6 {[%clk 0:02:49.3]} 9. c4 {[%clk 0:02:52.9]} 9... O-O {[%clk 0:02:41.1]}
10. cxd5 {[%clk 0:02:45.7]} 10... cxd5 {[%clk 0:02:40.8]} 11. O-O {[%clk
0:02:45.3]} 11... Ba6 {[%clk 0:02:30.5]} 12. h4 {[%clk 0:02:38.2]} 12... f6
{[%clk 0:02:14.5]} 13. exf6 {[%clk 0:02:32.2]} 13... exf6 {[%clk 0:02:11.3]} 14.
h5 {[%clk 0:02:26]} 14... Bxd3 {[%clk 0:02:11.2]} 15. Qxd3 {[%clk 0:02:26.8]}
15... Qe8 {[%clk 0:02:02.6]} 16. Re1 {[%clk 0:02:21.8]} 16... Qf7 {[%clk
0:02:01.8]} 17. Ba3 {[%clk 0:02:22]} 17... Re8 {[%clk 0:01:59.1]} 18. Rxe8+
{[%clk 0:02:21.9]} 18... Qxe8 {[%clk 0:02:00]} 19. Re1 {[%clk 0:02:22]} 19...
Qf7 {[%clk 0:01:34.4]} 20. Re7 {[%clk 0:02:21.2]} 20... Qf8 {[%clk 0:01:34.9]}
21. Rxa7 {[%clk 0:02:03.9]} 1-0